bitfinex/quotes_SOLUSD_20240712
["timestamp","ask_amount","ask_price","bid_price","bid_amount"]
[1720801205813,6.90422946,138.55,138.51,15.6635]
[1720801206013,6.90422946,138.55,138.48,15.7615]
[1720801206305,7.2183,138.54,138.48,15.7615]
[1720801206894,7.2183,138.54,138.46,6.5856]
[1720801207110,7.2176,138.55,138.46,6.5856]
[1720801207406,15.171,138.56,138.46,6.5856]
[1720801207605,34.77,138.57,138.47,45.0]
[1720801207813,7.2164,138.58,138.48,16.6073]
[1720801208000,51.2752,138.6,138.5,6.5951]
[1720801208206,16.5052,138.6,138.5,6.5951]
[1720801208513,7.2161,138.58,138.51,20.0]
[1720801208701,7.2156,138.59,138.51,20.0]
[1720801209103,26.78882223,138.6,138.51,20.0]
[1720801209607,19.57362223,138.6,138.51,20.0]
[1720801209821,45.0,138.59,138.51,20.0]
[1720801210109,7.2163,138.58,138.51,20.0]
[1720801210512,52.2157,138.59,138.51,20.0]
[1720801211816,45.0,138.59,138.51,20.0]
[1720801212116,45.0,138.59,138.52,20.0]
[1720801212410,7.2146,138.61,138.52,15.641]
[1720801212595,45.0,138.6,138.53,20.0]
[1720801213625,7.2146,138.61,138.53,20.0]
[1720801215005,13.01580966,138.62,138.53,20.0]
[1720801215207,13.01580966,138.62,138.54,6.1263]
[1720801215406,7.2145,138.61,138.55,20.0]
[1720801215605,7.215,138.6,138.55,20.0]
[1720801217489,7.2145,138.61,138.55,20.0]
[1720801217696,8.87023189,138.62,138.55,20.0]
[1720801218232,3.06842223,138.62,138.55,20.0]
[1720801219918,10.28232223,138.62,138.55,20.0]
[1720801220419,3.06842223,138.62,138.55,20.0]
[1720801220912,10.28242223,138.62,138.55,20.0]
[1720801221818,7.215,138.6,138.55,20.0]
[1720801221992,3.06842223,138.62,138.55,20.0]
[1720801222621,48.06842223,138.62,138.55,20.0]
[1720801222921,41.9831,138.64,138.55,20.0]
[1720801223220,7.2134,138.63,138.55,20.0]
[1720801224722,41.9831,138.64,138.55,20.0]
[1720801225121,7.2134,138.63,138.55,20.0]
[1720801227929,34.77,138.64,138.55,20.0]
[1720801228225,45.0,138.63,138.55,20.0]
[1720801228409,7.214,138.62,138.55,20.0]
[1720801228604,17.43,138.59,138.55,20.0]
[1720801231230,45.0,138.63,138.55,20.0]
[1720801231438,17.43,138.6,138.55,37.43]
[1720801231941,7.2129,138.64,138.55,37.43]
[1720801232117,17.43,138.6,138.55,37.43]
[1720801232631,17.43,138.61,138.56,16.101]
[1720801232835,17.43,138.61,138.57,20.0]
[1720801234032,13.01380966,138.66,138.57,20.0]
[1720801234245,17.43,138.64,138.58,23.5266]
[1720801234424,17.43,138.64,138.59,20.0]
[1720801234733,17.43,138.63,138.59,20.0]
[1720801237647,22.6755,138.74,138.6,21.5705]
[1720801237817,17.43,138.71,138.66,17.43]
[1720801238019,7.2073,138.75,138.67,20.0]
[1720801238232,17.43,138.72,138.67,37.43]
[1720801238633,7.2067,138.76,138.67,20.0]
[1720801238849,0.8740007,138.77,138.67,15.4696]
[1720801239025,0.8740007,138.77,138.68,65.0]
[1720801239937,0.8740007,138.77,138.69,6.538]
[1720801240138,0.8740007,138.77,138.7,20.0]
[1720801248541,0.8740007,138.77,138.71,60.8679]
[1720801248741,0.8740007,138.77,138.72,20.0]
[1720801252355,44.79,138.75,138.65,21.9097]
[1720801252536,34.79,138.72,138.65,21.9097]
[1720801252740,7.2104,138.69,138.62,403.363694]
[1720801253045,7.2099,138.7,138.62,6.3261]
[1720801253246,7.2093,138.71,138.62,6.3261]
[1720801253444,45.0,138.7,138.62,6.3261]
[1720801254046,30.0,138.67,138.62,6.3261]
[1720801255549,30.0,138.67,138.63,20.0]
[1720801261562,30.0,138.68,138.63,20.0]
[1720801263161,30.0,138.68,138.64,45.0]
[1720801263460,43.598,138.74,138.65,20.0]
[1720801263763,7.2083,138.73,138.65,20.0]
[1720801265168,43.5979,138.74,138.65,20.0]
[1720801265964,7.2082,138.73,138.65,20.0]
[1720801266342,45.0,138.72,138.65,20.0]
[1720801266568,7.2089,138.72,138.63,20.0]
[1720801268456,45.0,138.73,138.64,45.0]
[1720801268657,43.5982,138.74,138.65,20.0]
[1720801268854,36.39,138.74,138.65,20.0]
[1720801269060,45.0,138.73,138.65,20.0]
[1720801269355,45.0,138.73,138.63,20.0]
[1720801269356,52.2084,138.73,138.63,20.0]
[1720801269557,45.0,138.73,138.62,13.86475972]
[1720801269756,7.2112,138.68,138.62,13.86475972]
[1720801269958,7.2112,138.68,138.62,6.3261]
[1720801270345,7.2115,138.67,138.62,6.3261]
[1720801270753,7.2109,138.68,138.62,6.3261]
[1720801271668,15.2889,138.7,138.62,6.3261]
[1720801271876,30.0,138.66,138.61,15.5836]
[1720801272059,30.0,138.66,138.62,20.0]
[1720801272646,37.2121,138.66,138.62,20.0]
[1720801272948,37.2121,138.66,138.6,20.0]
[1720801273352,7.2124,138.65,138.6,20.0]
[1720801273563,30.0,138.64,138.58,20.0]
[1720801273771,30.0,138.64,138.57,15.8703]
[1720801274167,37.213,138.64,138.57,15.8703]
[1720801274555,45.0,138.63,138.57,15.8703]
[1720801275171,30.0,138.62,138.57,15.8703]
[1720801275379,30.0,138.62,138.56,13.60293673]
[1720801275674,30.0,138.62,138.57,20.0]
[1720801277392,30.0,138.62,138.58,45.0]
[1720801277557,30.0,138.62,138.59,20.0]
[1720801277753,7.2106,138.69,138.59,20.0]
[1720801277971,7.2112,138.68,138.59,20.0]
[1720801279775,7.2105,138.69,138.59,20.0]
[1720801280072,45.0,138.68,138.59,20.0]
[1720801280374,15.2889,138.7,138.6,15.7642]
[1720801280580,15.2889,138.7,138.61,20.0]
[1720801280886,36.39,138.72,138.62,6.1929]
[1720801281088,7.2106,138.69,138.63,20.0]
[1720801281578,39.45842223,138.72,138.63,20.0]
[1720801281579,7.2099,138.7,138.63,20.0]
[1720801281984,7.2103,138.69,138.63,20.0]
[1720801282167,52.2103,138.69,138.63,20.0]
[1720801282753,7.2108,138.68,138.63,20.0]
[1720801283181,52.2114,138.67,138.61,20.0]
[1720801283480,7.2114,138.67,138.61,20.0]
[1720801283876,7.211,138.68,138.61,20.0]
[1720801284060,45.0,138.67,138.61,20.0]
[1720801284455,7.212,138.66,138.61,20.0]
[1720801284657,52.2124,138.65,138.58,6.6153]
[1720801284968,30.0,138.63,138.58,6.6153]
[1720801285171,30.0,138.63,138.55,7.53727486]
[1720801286062,30.0,138.63,138.56,20.0]
[1720801287079,30.0,138.63,138.57,45.0]
[1720801287265,30.0,138.63,138.58,20.0]
[1720801288374,30.0,138.63,138.56,20.0]
[1720801288581,7.2114,138.67,138.57,45.0]
[1720801288784,7.212,138.66,138.58,20.0]
[1720801289378,36.39,138.69,138.58,20.0]
[1720801289582,52.2112,138.68,138.56,20.0]
[1720801289771,52.2112,138.68,138.57,45.0]
[1720801289966,52.2112,138.68,138.58,20.0]
[1720801290382,7.2115,138.67,138.58,20.0]
[1720801290897,45.0,138.68,138.58,20.0]
[1720801291066,45.0,138.69,138.58,20.0]
[1720801291382,7.2099,138.7,138.6,6.2821]
[1720801291568,7.2103,138.69,138.61,20.0]
[1720801293170,7.2098,138.7,138.61,20.0]
[1720801293566,52.3894,138.71,138.61,20.0]
[1720801293765,45.0,138.7,138.61,20.0]
[1720801294272,7.2111,138.68,138.61,20.0]
[1720801295367,7.2105,138.69,138.61,20.0]
[1720801295789,7.2109,138.68,138.61,20.0]
[1720801296284,7.2105,138.69,138.61,20.0]
[1720801296996,52.21,138.7,138.61,20.0]
[1720801297188,52.3894,138.71,138.61,20.0]
[1720801297393,3.06842223,138.72,138.62,45.0]
[1720801297566,3.06842223,138.72,138.63,20.0]
[1720801298272,7.2077,138.74,138.64,45.0]
[1720801298474,12.80097329,138.73,138.65,20.0]
[1720801298670,22.4279,138.75,138.66,21.2412]
[1720801298877,7.2075,138.75,138.67,20.0]
[1720801299473,7.2077,138.74,138.67,20.0]
[1720801299983,7.2082,138.73,138.67,20.0]
[1720801300174,7.2087,138.72,138.67,20.0]
[1720801300371,18.0182,138.75,138.67,20.0]
[1720801300578,7.2088,138.72,138.67,20.0]
[1720801300780,7.2082,138.73,138.67,20.0]
[1720801301083,7.2078,138.74,138.67,20.0]
[1720801301594,10.27562223,138.75,138.67,20.0]
[1720801302089,7.2077,138.74,138.67,20.0]
[1720801302295,7.2083,138.73,138.67,20.0]
[1720801303091,10.27602223,138.75,138.67,20.0]
[1720801303476,7.2076,138.75,138.67,20.0]
[1720801303783,7.2073,138.75,138.67,20.0]
[1720801303986,7.2077,138.74,138.67,20.0]
[1720801304679,7.2082,138.73,138.67,20.0]
[1720801304876,7.2079,138.74,138.67,20.0]
[1720801306176,7.2074,138.75,138.67,20.0]
[1720801306490,45.0,138.74,138.67,20.0]
[1720801306872,3.70127026,138.77,138.67,20.0]
[1720801307087,55.90777026,138.77,138.67,20.0]
[1720801307779,7.2067,138.76,138.67,20.0]
[1720801312173,0.8740007,138.77,138.68,21.6237]
[1720801312402,0.8740007,138.77,138.69,101.39]
[1720801312578,0.8740007,138.77,138.71,6.2489]
[1720801312777,0.8740007,138.77,138.72,20.0]
[1720801313678,0.8740007,138.77,138.73,0.63541289]
[1720801313997,0.8740007,138.77,138.72,20.0]
[1720801318694,7.2066,138.76,138.72,20.0]
[1720801318891,0.8740007,138.77,138.71,6.2489]
[1720801319578,7.2066,138.76,138.71,6.2489]
[1720801319779,7.2066,138.76,138.64,29.63010009]
[1720801319780,7.2098,138.7,138.64,29.63010009]
[1720801319994,7.2098,138.7,138.64,22.0968]
[1720801320199,7.2107,138.69,138.64,6.1457]
[1720801320402,46.39,138.72,138.61,7.53923786]
[1720801320580,30.0,138.68,138.6,6.1457]
[1720801320776,45.0,138.67,138.6,6.1457]
[1720801321274,7.212,138.66,138.58,7.53755422]
[1720801321485,7.2125,138.65,138.58,7.53755422]
[1720801321782,7.2125,138.65,138.57,15.9511]
[1720801322379,52.2118,138.67,138.57,15.9511]
[1720801322587,45.0,138.67,138.57,15.9511]
[1720801322793,45.0,138.67,138.58,20.0]
[1720801323497,7.212,138.66,138.58,20.0]
[1720801323698,45.0,138.65,138.58,20.0]
[1720801324203,7.212,138.66,138.58,20.0]
[1720801324509,45.0,138.65,138.58,20.0]
[1720801325799,52.2124,138.65,138.58,20.0]
[1720801326183,45.0,138.65,138.58,20.0]
[1720801326801,7.213,138.64,138.58,20.0]
[1720801327702,52.2125,138.65,138.58,20.0]
[1720801327884,7.2117,138.67,138.58,20.0]
[1720801328201,7.2124,138.65,138.58,20.0]
[1720801328607,7.2129,138.64,138.58,20.0]
[1720801329899,7.2125,138.65,138.58,20.0]
[1720801330203,45.0,138.64,138.58,20.0]
[1720801330606,52.213,138.64,138.58,20.0]
[1720801331992,7.2135,138.63,138.58,20.0]
[1720801332685,52.2131,138.64,138.58,20.0]
[1720801333801,45.0,138.64,138.56,6.4264]
[1720801334002,7.2144,138.61,138.56,6.4264]
[1720801334702,7.2142,138.62,138.56,6.4264]
[1720801334903,45.0,138.64,138.56,6.4264]
[1720801335220,7.213,138.64,138.56,6.4264]
[1720801335388,45.0,138.63,138.56,6.4264]
[1720801335788,45.0,138.63,138.57,20.0]
[1720801337405,52.2135,138.63,138.57,20.0]
[1720801337604,7.2135,138.63,138.57,20.0]
[1720801337910,7.2125,138.65,138.57,20.0]
[1720801338306,25.21038252,138.68,138.57,20.0]
[1720801338816,7.2122,138.66,138.57,20.0]
[1720801339007,7.2133,138.64,138.57,20.0]
[1720801339311,7.2134,138.63,138.57,20.0]
[1720801339606,3.06842223,138.67,138.57,20.0]
[1720801339913,7.2125,138.65,138.57,20.0]
[1720801340291,7.213,138.64,138.57,20.0]
[1720801341014,7.2126,138.65,138.57,20.0]
[1720801341501,7.2129,138.64,138.57,20.0]
[1720801342294,7.2125,138.65,138.57,20.0]
[1720801343207,7.2118,138.66,138.57,20.0]
[1720801343410,10.27982223,138.67,138.57,20.0]
[1720801343727,3.06842223,138.67,138.57,20.0]
[1720801343902,7.2124,138.65,138.57,20.0]
[1720801345011,39.49842223,138.67,138.58,60.1433]
[1720801345318,39.49842223,138.67,138.59,20.0]
[1720801345507,46.70972223,138.67,138.59,20.0]
[1720801346233,43.6413,138.67,138.59,20.0]
[1720801346525,7.211,138.68,138.59,20.0]
[1720801347732,7.2114,138.67,138.59,20.0]
[1720801348099,52.212,138.66,138.59,20.0]
[1720801348645,7.2115,138.67,138.59,20.0]
[1720801349500,39.49842223,138.7,138.6,6.3967]
[1720801349695,7.2105,138.69,138.61,20.0]
[1720801350110,7.2108,138.68,138.61,20.0]
[1720801350428,7.2115,138.67,138.61,20.0]
[1720801350598,60.38526589,138.7,138.61,20.0]
[1720801350794,7.2121,138.66,138.61,20.0]
[1720801351721,7.2115,138.67,138.61,20.0]
[1720801351915,7.211,138.68,138.61,20.0]
[1720801352116,45.0,138.67,138.61,20.0]
[1720801352306,10.27882223,138.69,138.61,20.0]
[1720801352504,7.2104,138.69,138.61,20.0]
[1720801353997,7.2117,138.67,138.61,20.0]
[1720801354798,7.2109,138.68,138.61,20.0]
[1720801355420,52.2114,138.67,138.61,20.0]
[1720801355715,7.211,138.68,138.61,20.0]
[1720801356015,52.2105,138.69,138.61,20.0]
[1720801356214,7.2109,138.68,138.61,20.0]
[1720801357927,7.2114,138.67,138.61,20.0]
[1720801359107,7.211,138.68,138.61,20.0]
[1720801359307,45.0,138.67,138.61,20.0]
[1720801359516,45.0,138.67,138.6,6.3967]
[1720801359822,45.0,138.67,138.58,15.1433]
[1720801359823,36.43,138.66,138.58,15.1433]
[1720801360021,43.6436,138.63,138.58,15.1433]
[1720801360211,43.6436,138.63,138.57,14.20312097]
[1720801360520,45.0,138.62,138.57,14.20312097]
[1720801360928,7.2125,138.65,138.57,14.20312097]
[1720801361305,43.6419,138.66,138.57,14.20312097]
[1720801361511,52.2124,138.65,138.57,14.20312097]
[1720801361712,7.2131,138.64,138.57,14.20312097]
[1720801362012,45.0,138.65,138.57,14.20312097]
[1720801362333,45.0,138.65,138.58,20.0]
[1720801362708,2.86224366,138.7,138.61,16.38]
[1720801362907,7.2085,138.73,138.63,6.2733]
[1720801363112,7.2083,138.73,138.64,20.0]
[1720801364215,12.77208023,138.72,138.64,20.0]
[1720801364422,7.2083,138.73,138.64,20.0]
[1720801364625,12.77359198,138.72,138.64,20.0]
[1720801364927,7.2083,138.73,138.64,20.0]
[1720801365121,45.0,138.72,138.64,20.0]
[1720801365716,45.0,138.73,138.64,20.0]
[1720801366627,52.2082,138.73,138.64,20.0]
[1720801367621,7.2087,138.72,138.64,20.0]
[1720801369212,7.2094,138.71,138.64,20.0]
[1720801369417,45.0,138.7,138.64,20.0]
[1720801371523,45.0,138.71,138.64,20.0]
[1720801372128,2.90601845,138.76,138.66,6.0063]
[1720801372332,36.38,138.8,138.67,80.8718]
[1720801373325,7.2057,138.78,138.67,80.8718]
[1720801373630,8.0803007,138.77,138.67,35.8718]
[1720801374636,45.0,138.76,138.67,35.8718]
[1720801377322,45.8740007,138.77,138.67,35.8718]
[1720801377827,7.2067,138.76,138.67,35.8718]
[1720801378221,53.0802007,138.77,138.67,35.8718]
[1720801378727,0.8740007,138.77,138.69,6.6004]
[1720801378928,0.8740007,138.77,138.7,20.0]
[1720801383538,0.8740007,138.77,138.71,15.0465]
[1720801383734,0.8740007,138.77,138.72,20.0]
[1720801388540,0.8740007,138.77,138.73,6.1601]
[1720801388744,0.8740007,138.77,138.74,20.0]
[1720801390736,0.8740007,138.77,138.75,16.055]
[1720801390945,0.8740007,138.77,138.76,20.0]
[1720801392030,0.8740007,138.77,138.76,21.43833203]
[1720801393354,10.03402478,138.85,138.77,6.1205]
[1720801393535,10.03402478,138.85,138.78,21.43833215]
[1720801393536,7.2021,138.85,138.78,21.43833215]
[1720801394566,7.2013,138.87,138.78,20.0]
[1720801394756,7.2006,138.88,138.8,6.1085]
[1720801395045,7.2006,138.88,138.81,21.44047459]
[1720801395953,7.2006,138.88,138.81,20.0]
[1720801396455,7.201,138.87,138.81,20.0]
[1720801396838,37.2540007,138.91,138.81,20.0]
[1720801397044,7.1998,138.9,138.81,20.0]
[1720801397445,7.2,138.89,138.81,20.0]
[1720801399029,7.2004,138.88,138.81,20.0]
[1720801399536,7.1999,138.89,138.81,20.0]
[1720801400261,40.06035251,138.91,138.81,20.0]
[1720801400457,52.1995,138.9,138.81,20.0]
[1720801401256,7.2,138.89,138.81,20.0]
[1720801402242,45.0,138.9,138.81,20.0]
[1720801402551,7.2005,138.88,138.81,20.0]
[1720801403055,7.2001,138.89,138.81,20.0]
[1720801403237,45.0,138.88,138.81,20.0]
[1720801403852,52.2005,138.88,138.81,20.0]
[1720801404156,45.0,138.88,138.81,20.0]
[1720801404344,0.8740007,138.91,138.83,22.1148]
[1720801404544,0.8740007,138.91,138.86,22.1148]
[1720801404747,0.8740007,138.91,138.87,20.0]
[1720801406162,2.89654634,138.98,138.88,22.8604]
[1720801406376,36.38,139.01,138.89,20.0]
[1720801407256,2.83282003,139.02,138.9,22.8604]
[1720801407442,51.38,139.02,138.91,20.0]
[1720801407647,7.1948,138.99,138.91,20.0]
[1720801408046,7.1949,138.99,138.91,20.0]
[1720801408251,7.1948,138.99,138.91,20.0]
[1720801408456,7.1944,139.0,138.91,20.0]
[1720801410240,46.38,139.03,138.91,20.0]
[1720801410443,7.1948,138.99,138.91,20.0]
[1720801411142,7.1952,138.98,138.91,20.0]
[1720801412545,7.1957,138.97,138.91,20.0]
[1720801413543,7.1968,138.95,138.9,22.8604]
[1720801413751,7.1969,138.95,138.9,22.8604]
[1720801414051,7.1963,138.96,138.9,22.8604]
[1720801414857,17.9885,138.98,138.9,22.8604]
[1720801415057,7.1976,138.94,138.84,22.5525]
[1720801415253,7.1976,138.94,138.85,20.0]
[1720801415464,7.1976,138.94,138.84,22.5525]
[1720801415665,97.0758,138.97,138.84,22.5525]
[1720801416247,7.1979,138.93,138.84,22.5525]
[1720801416749,7.1975,138.94,138.84,22.5525]
[1720801416946,7.1961,138.97,138.85,41.282]
[1720801417169,7.1963,138.96,138.86,45.0]
[1720801417467,7.1959,138.97,138.87,20.0]
[1720801417675,36.38,138.99,138.87,20.0]
[1720801417970,54.3669,138.99,138.87,20.0]
[1720801418266,36.38,138.99,138.86,20.0]
[1720801418472,7.1966,138.96,138.87,45.0]
[1720801418645,7.1969,138.95,138.88,20.0]
[1720801418845,7.1969,138.95,138.86,20.0]
[1720801419988,7.1963,138.96,138.86,20.0]
[1720801420158,7.1959,138.97,138.87,45.0]
[1720801420474,45.0,138.96,138.88,20.0]
[1720801420878,7.1961,138.97,138.88,20.0]
[1720801421072,7.1953,138.98,138.89,67.3549]
[1720801421254,39.19747098,138.99,138.9,20.0]
[1720801421867,46.39257098,138.99,138.9,20.0]
[1720801422070,7.1953,138.98,138.9,20.0]
[1720801422474,39.19747098,138.99,138.9,20.0]
[1720801422770,7.1947,138.99,138.9,20.0]
[1720801423769,2.89205109,139.0,138.9,20.0]
[1720801423977,7.1949,138.99,138.9,20.0]
[1720801424672,15.2423,139.01,138.9,20.0]
[1720801425177,7.195,138.99,138.9,20.0]
[1720801425973,7.1953,138.98,138.9,20.0]
[1720801426171,18.13608749,139.01,138.9,20.0]
[1720801426172,7.1949,138.99,138.9,20.0]
[1720801426963,2.89378749,139.01,138.9,20.0]
[1720801427266,7.1944,139.0,138.91,45.0]
[1720801427466,7.1938,139.01,138.93,22.2043]
[1720801427670,39.24750516,139.02,138.94,20.0]
[1720801427868,7.1942,139.0,138.94,20.0]
[1720801428686,7.1949,138.99,138.94,20.0]
[1720801428862,39.24750516,139.02,138.94,20.0]
[1720801429066,7.1944,139.0,138.94,20.0]
[1720801430678,7.1937,139.01,138.94,20.0]
[1720801430860,39.24750516,139.02,138.94,20.0]
[1720801431167,46.44090516,139.02,138.94,20.0]
[1720801431563,7.1938,139.01,138.94,20.0]
[1720801431768,46.44070516,139.02,138.94,20.0]
[1720801431977,7.1937,139.01,138.94,20.0]
[1720801432487,7.1944,139.0,138.94,20.0]
[1720801432786,7.1939,139.01,138.94,20.0]
[1720801433096,2.86750516,139.02,138.94,20.0]
[1720801433382,7.1932,139.02,138.94,20.0]
[1720801433590,52.1938,139.01,138.94,20.0]
[1720801433766,7.1938,139.01,138.94,20.0]
[1720801434591,18.12,138.99,138.94,20.0]
[1720801434878,18.12,138.99,138.94,38.12]
[1720801435079,91.48761123,139.04,138.94,38.12]
[1720801435080,18.12,139.0,138.95,18.12]
[1720801435381,18.12,139.0,138.96,20.0]
[1720801435974,18.12,139.0,138.97,0.60379453]
[1720801436968,18.12,139.0,138.97,0.88085889]
[1720801437168,79.6723,139.04,138.97,0.88085889]
[1720801437385,18.12,139.01,138.97,0.88085889]
[1720801437787,18.12,139.01,138.96,38.12]
[1720801438084,18.12,139.0,138.96,20.0]
[1720801438571,18.12,139.0,138.95,20.0]
[1720801440095,18.12,138.98,138.95,20.0]
[1720801440389,18.12,138.98,138.93,22.2043]
[1720801440390,18.12,138.98,138.94,20.0]
[1720801440588,18.12,138.99,138.94,20.0]
[1720801440776,18.12,138.98,138.94,20.0]
[1720801441787,18.12,138.99,138.94,20.0]
[1720801442384,18.12,138.97,138.93,22.2043]
[1720801442579,18.12,138.96,138.93,22.2043]
[1720801442873,18.12,138.95,138.93,22.2043]
[1720801443462,18.12,138.96,138.93,22.2043]
[1720801444210,18.12,138.95,138.94,20.0]
[1720801444379,18.12,138.95,138.89,21.8235]
[1720801444570,18.12,138.94,138.89,21.8235]
[1720801445391,18.12,138.93,138.89,21.8235]
[1720801445595,18.12,138.92,138.89,21.8235]
[1720801445977,18.12,138.93,138.89,21.8235]
[1720801446592,18.12,138.92,138.89,21.8235]
[1720801446793,18.12,138.93,138.89,21.8235]
[1720801447131,18.12,138.95,138.9,18.12]
[1720801447574,18.12,138.96,138.9,18.12]
[1720801447775,7.1949,138.99,138.91,18.12]
[1720801448002,18.12,138.96,138.92,20.0]
[1720801448294,18.12,138.97,138.91,38.12]
[1720801448475,18.12,138.96,138.91,20.0]
[1720801448682,18.12,138.96,138.91,18.12]
[1720801448885,18.12,138.96,138.92,20.0]
[1720801449285,18.12,138.95,138.92,20.0]
[1720801449480,7.1948,138.99,138.91,20.0]
[1720801449687,18.12,138.96,138.91,38.12]
[1720801449888,18.12,138.97,138.91,38.12]
[1720801450088,18.12,138.96,138.91,20.0]
[1720801450404,18.12,138.95,138.91,20.0]
[1720801450604,7.1953,138.98,138.91,20.0]
[1720801450782,7.1953,138.98,138.9,20.0]
[1720801450987,36.25,139.0,138.9,20.0]
[1720801451190,57.78611671,138.99,138.9,20.0]
[1720801451392,7.1939,139.01,138.9,20.0]
[1720801451699,19.97913898,139.0,138.91,45.0]
[1720801451891,7.1942,139.0,138.92,20.0]
[1720801452882,7.1948,138.99,138.92,20.0]
[1720801453299,17.9847,139.01,138.92,20.0]
[1720801453501,7.1954,138.98,138.9,20.0]
[1720801453711,7.1947,138.99,138.9,20.0]
[1720801453887,2.91928673,139.02,138.9,20.0]
[1720801454204,7.1947,138.99,138.9,20.0]
[1720801454384,45.0,139.02,138.9,20.0]
[1720801454586,45.0,139.02,138.91,45.0]
[1720801454587,12.77800028,139.01,138.91,45.0]
[1720801454884,7.1936,139.02,138.92,20.0]
[1720801455095,19.97432898,139.01,138.92,20.0]
[1720801455403,19.97291197,139.0,138.92,20.0]
[1720801455589,7.1942,139.0,138.92,20.0]
[1720801455789,7.1935,139.02,138.92,20.0]
[1720801456186,7.1938,139.01,138.93,22.0976]
[1720801456385,7.1938,139.01,138.94,20.0]
[1720801456602,7.1932,139.02,138.94,20.0]
[1720801456802,7.1937,139.01,138.94,20.0]
[1720801457308,7.1943,139.0,138.94,20.0]
[1720801457689,7.1939,139.01,138.94,20.0]
[1720801457891,7.1932,139.02,138.94,20.0]
[1720801458300,7.1937,139.01,138.94,20.0]
[1720801458687,7.1933,139.02,138.94,20.0]
[1720801459289,52.08077385,139.03,138.94,20.0]
[1720801459492,12.77915461,139.02,138.94,20.0]
[1720801459812,43.4428,139.03,138.94,20.0]
[1720801460793,7.1921,139.04,138.94,20.0]
[1720801460989,12.7863119,139.03,138.95,45.0]
[1720801461205,7.1921,139.04,138.96,20.0]
[1720801461511,19.97818956,139.03,138.96,20.0]
[1720801461694,7.1927,139.03,138.96,20.0]
[1720801462215,7.1923,139.04,138.96,20.0]
[1720801462425,12.78226326,139.03,138.96,20.0]
[1720801462624,7.1923,139.04,138.96,20.0]
[1720801462801,12.7829018,139.03,138.96,20.0]
[1720801463003,19.9756018,139.03,138.96,20.0]
[1720801463210,7.1927,139.03,138.96,20.0]
[1720801463524,19.97517139,139.02,138.96,20.0]
[1720801463701,7.1932,139.02,138.94,20.0]
[1720801463910,7.1927,139.03,138.94,20.0]
[1720801464236,57.78221398,139.02,138.94,20.0]
[1720801464514,7.1937,139.01,138.94,20.0]
[1720801465798,7.1948,138.99,138.94,20.0]
[1720801466027,7.1944,139.0,138.94,20.0]
[1720801466231,7.1938,139.01,138.94,20.0]